bitfinex-derivatives/quotes_SOLF0:USTF0_20260105
["timestamp","ask_amount","ask_price","bid_price","bid_amount"]
[1767578886343,2.25171823,136.7,136.62,2.27567526]
[1767578887345,2.25171823,136.7,136.63,2.27567526]
[1767578887647,2.25171823,136.73,136.64,2.27567526]
[1767578887828,88.65171823,136.73,136.64,2.27567526]
[1767578888029,2.25171823,136.72,136.64,2.27567526]
[1767578888233,2.25171823,136.71,136.6,2.27567526]
[1767578888638,2.25171823,136.69,136.6,2.27567526]
[1767578889036,88.65171823,136.68,136.6,2.27567526]
[1767578889735,102.4534,136.71,136.6,2.27567526]
[1767578889736,2.25171823,136.71,136.61,2.27567526]
[1767578889942,88.65171823,136.71,136.61,2.27567526]
[1767578890639,2.25171823,136.71,136.61,2.27567526]
[1767578890837,2.25171823,136.71,136.63,2.27567526]
[1767578892139,2.25171823,136.71,136.64,2.27567526]
[1767578892341,2.25171823,136.74,136.64,2.27567526]
[1767578892536,88.67171823,136.74,136.64,2.27567526]
[1767578892732,2.25171823,136.73,136.64,8.86487526]
[1767578893845,2.25171823,136.73,136.65,8.86447526]
[1767578894139,2.25171823,136.73,136.65,2.27567526]
[1767578894646,102.419,136.76,136.65,2.27567526]
[1767578894647,2.25171823,136.76,136.65,2.27567526]
[1767578894842,2.25171823,136.75,136.65,2.27567526]
[1767578895538,2.25171823,136.75,136.67,2.27567526]
[1767578896341,2.25171823,136.75,136.68,8.86297526]
[1767578896536,86.42,136.77,136.68,8.86297526]
[1767578896740,86.42,136.77,136.66,102.4855]
[1767578896741,86.42,136.77,136.69,2.27567526]
[1767578897545,86.42,136.77,136.69,8.86257526]
[1767578899349,86.42,136.77,136.7,8.86207526]
[1767578900553,86.42,136.77,136.71,2.27567526]
[1767578901249,2.25171823,136.81,136.72,2.27567526]
[1767578902146,86.42,136.82,136.67,102.4785]
[1767578902147,2.25171823,136.79,136.68,2.27567526]
[1767578902553,2.25171823,136.79,136.7,2.27567526]
[1767578903251,2.25171823,136.79,136.71,8.86157526]
[1767578903847,86.42,136.82,136.67,2.27567526]
[1767578903848,2.25171823,136.75,136.67,2.27567526]
[1767578904152,86.4,136.77,136.67,2.27567526]
[1767578904351,86.4,136.77,136.68,2.27567526]
[1767578904753,2.25171823,136.78,136.7,2.27567526]
[1767578904949,86.4,136.8,136.7,2.27567526]
[1767578905141,88.65171823,136.8,136.7,2.27567526]
[1767578905546,88.65171823,136.8,136.7,8.86207526]
[1767578906155,2.25171823,136.79,136.7,8.86207526]
[1767578907463,2.25171823,136.79,136.71,8.86147526]
[1767578908753,2.25171823,136.79,136.71,2.27567526]
[1767578908951,2.25171823,136.77,136.65,2.27567526]
[1767578909154,2.25171823,136.74,136.65,2.27567526]
[1767578909360,2.25171823,136.74,136.62,2.27567526]
[1767578909556,2.25171823,136.73,136.62,2.27567526]
[1767578909751,6.5865,136.71,136.62,2.27567526]
[1767578909947,2.25171823,136.7,136.62,2.27567526]
[1767578910962,2.25171823,136.7,136.62,8.86587526]
[1767578911263,86.4,136.71,136.62,2.27567526]
[1767578911854,86.4,136.71,136.63,6.5898]
[1767578912049,2.14736773,136.7,136.63,6.5898]
[1767578912348,2.14736773,136.75,136.64,2.1049325]
[1767578912960,2.14736773,136.75,136.65,8.6937325]
[1767578913858,8.73186773,136.75,136.65,8.6937325]
[1767578914159,2.14736773,136.74,136.65,6.5888]
[1767578914363,2.14736773,136.74,136.63,8.6948325]
[1767578915060,2.14736773,136.74,136.64,2.1049325]
[1767578915655,2.14736773,136.73,136.64,8.6942325]
[1767578915853,2.22527368,136.76,136.65,2.27727945]
[1767578916059,88.62527368,136.76,136.65,2.27727945]
[1767578916251,2.22527368,136.75,136.65,2.27727945]
[1767578916451,86.4,136.76,136.66,2.27727945]
[1767578916650,88.62527368,136.76,136.66,2.27727945]
[1767578917459,2.22527368,136.75,136.66,2.27727945]
[1767578917661,2.22527368,136.75,136.67,6.5879]
[1767578918365,2.22527368,136.75,136.66,2.27727945]
[1767578918670,8.80977368,136.75,136.66,8.86557945]
[1767578918960,2.22527368,136.75,136.67,2.27727945]
[1767578919166,2.22527368,136.77,136.67,2.27727945]
[1767578919667,2.22527368,136.77,136.71,0.04670653]
[1767578920365,88.64527368,136.8,136.71,0.04670653]
[1767578920765,88.64527368,136.8,136.7,2.27727945]
[1767578921266,88.64527368,136.8,136.74,0.04775225]
[1767578921465,12.23985156,136.82,136.74,0.04775225]
[1767578921650,8.80597368,136.83,136.74,0.04775225]
[1767578922161,2.22527368,136.82,136.72,2.27727945]
[1767578922367,8.80637368,136.82,136.73,6.5848]
[1767578922561,2.22527368,136.82,136.77,0.05518768]
[1767578923363,2.22527368,136.82,136.74,2.27727945]
[1767578924465,2.22527368,136.81,136.72,6.5855]
[1767578924665,2.22527368,136.81,136.73,2.27727945]
[1767578925360,2.22527368,136.82,136.73,2.27727945]
[1767578925563,2.22527368,136.82,136.71,188.8697]
[1767578925564,2.22527368,136.81,136.71,88.69727945]
[1767578926167,2.22527368,136.81,136.72,2.27727945]
[1767578927666,8.80687368,136.81,136.72,2.27727945]
[1767578927857,2.22527368,136.8,136.72,2.27727945]
[1767578928665,8.80737368,136.8,136.72,2.27727945]
[1767578929575,2.22527368,136.8,136.69,104.74157945]
[1767578929768,2.22527368,136.8,136.7,2.27727945]
[1767578930763,8.80747368,136.8,136.71,8.86327945]
[1767578931769,8.80747368,136.8,136.72,2.27727945]
[1767578932971,2.22527368,136.79,136.72,2.27727945]
[1767578936379,8.80787368,136.79,136.72,2.27727945]
[1767578936571,2.22527368,136.79,136.72,2.27727945]
[1767578940282,2.22527368,136.82,136.72,2.27727945]
[1767578940482,1.47931269,136.81,136.73,1.93875916]
[1767578940689,3.42695676,136.81,136.73,1.93875916]
[1767578941075,1.94764407,136.78,136.71,1.93875916]
[1767578941476,1.47931269,136.79,136.71,1.93875916]
[1767578942180,1.47931269,136.79,136.69,103.94361269]
[1767578942181,1.47931269,136.79,136.72,8.52425916]
[1767578942588,1.47931269,136.79,136.72,1.93875916]
[1767578943386,3.42695676,136.81,136.72,1.93875916]
[1767578944283,1.94764407,136.81,136.74,1.93875916]
[1767578944600,1.94764407,136.83,136.74,1.93875916]
[1767578945292,1.94764407,136.83,136.75,6.5841]
[1767578946490,1.94764407,136.81,136.74,1.93875916]
[1767578947588,1.94764407,136.81,136.74,8.52325916]
[1767578949990,1.94764407,136.81,136.74,1.93875916]
[1767578950491,8.52924407,136.81,136.74,1.93875916]
[1767578951288,1.94764407,136.81,136.74,1.93875916]
[1767578952292,8.52834407,136.83,136.75,1.93875916]
[1767578952493,1.94764407,136.82,136.75,1.93875916]
[1767578953495,1.94764407,136.82,136.75,8.52275916]
[1767578957286,1.94764407,136.82,136.75,1.93875916]
[1767578958599,8.52864407,136.82,136.75,1.93875916]
[1767578958899,1.94764407,136.81,136.74,6.5846]
[1767578959094,1.94764407,136.81,136.73,1.93875916]
[1767578959400,1.94764407,136.79,136.71,1.93875916]
[1767578959599,1.94764407,136.79,136.72,1.93875916]
[1767578961493,8.52924407,136.81,136.73,1.93875916]
[1767578961799,1.94764407,136.81,136.73,1.93875916]
[1767578962694,1.94764407,136.81,136.74,1.93875916]
[1767578962891,86.38,136.82,136.74,1.93875916]
[1767578963195,86.38,136.82,136.76,8.52235916]
[1767578963497,1.94764407,136.83,136.76,8.52235916]
[1767578964301,88.32764407,136.86,136.78,1.93875916]
[1767578965098,88.32764407,136.86,136.79,1.93875916]
[1767578966105,88.32764407,136.86,136.79,8.52085916]
[1767578966405,88.32764407,136.86,136.8,1.93875916]
[1767578966590,8.52544407,136.89,136.8,8.52035916]
[1767578966790,8.52544407,136.89,136.8,1.93875916]
[1767578966791,1.94764407,136.89,136.8,1.93875916]
[1767578968103,1.94764407,136.89,136.82,8.51945916]
[1767578968493,1.94764407,136.91,136.83,1.93875916]
[1767578970624,3.42465642,136.91,136.83,1.93875916]
[1767578970920,1.94764407,136.91,136.83,1.93875916]
[1767578971212,3.42465642,136.91,136.83,1.93875916]
[1767578971614,12.39032633,136.93,136.86,1.93556172]
[1767578971811,3.40212416,136.94,136.86,1.93556172]
[1767578973813,1.92511181,136.93,136.86,1.93556172]
[1767578975623,1.47701235,136.94,136.86,1.93556172]
[1767578976920,3.31981898,136.94,136.86,1.93556172]
[1767578978925,1.84280663,136.93,136.86,1.93556172]
[1767578979417,3.31981898,136.93,136.86,1.93556172]
[1767578979622,1.84280663,136.93,136.86,1.93556172]
[1767578981523,3.31981898,136.92,136.84,3.31052117]
[1767578981719,3.31981898,136.92,136.84,1.83350882]
[1767578982628,1.84280663,136.92,136.84,1.83350882]
[1767578984526,1.84280663,136.92,136.85,1.83350882]
[1767578986426,1.84280663,136.94,136.86,1.83350882]
[1767578987125,1.84280663,136.97,136.89,8.41100882]
[1767578987726,1.84280663,136.97,136.89,1.83350882]
[1767578988025,1.84280663,136.97,136.87,8.41190882]
[1767578988428,1.84280663,136.95,136.87,8.41190882]
[1767578988731,1.84280663,136.95,136.87,1.83350882]
[1767578989321,1.84280663,136.94,136.87,1.83350882]
[1767578990318,1.84280663,136.93,136.87,1.83350882]
[1767578996739,1.84280663,136.92,136.85,1.83350882]
[1767579002540,4.02835754,136.97,136.86,1.69157649]
[1767579002729,1.72116906,136.97,136.86,1.69157649]
[1767579003245,1.72116906,137.0,136.92,1.69157649]
[1767579003424,1.72116906,137.04,136.94,1.69157649]
[1767579003828,8.29176906,137.04,136.95,8.26597649]
[1767579004029,1.72116906,137.03,136.95,8.26597649]
[1767579004737,1.72116906,137.03,136.98,0.04839529]
[1767579005729,101.08283848,137.06,136.98,1.73997178]
[1767579005730,14.19681906,137.06,136.98,1.73997178]
[1767579006132,1.72116906,137.05,136.98,1.73997178]
[1767579006534,1.72116906,137.05,136.98,0.04839529]
[1767579006838,1.72116906,137.03,136.93,1.69157649]
[1767579007034,8.29226906,137.03,136.93,1.69157649]
[1767579007234,1.72116906,137.02,136.93,1.69157649]
[1767579008535,1.72116906,137.01,136.93,1.69157649]
[1767579009939,1.72116906,137.01,136.9,8.26837649]
[1767579010136,1.72116906,137.01,136.91,1.69157649]
[1767579011544,1.72116906,136.97,136.88,8.26937649]
[1767579011934,1.72116906,136.97,136.89,1.69157649]
[1767579013543,1.72116906,136.95,136.87,1.69157649]
[1767579015348,8.29606906,136.95,136.87,1.69157649]
[1767579015548,1.72116906,136.93,136.85,1.69157649]
[1767579016457,1.72116906,136.93,136.79,13.40284689]
[1767579016653,1.72116906,136.87,136.78,1.69157649]
[1767579017548,1.72116906,136.85,136.75,1.69157649]
[1767579019157,1.72116906,136.85,136.76,1.69157649]
[1767579021756,1.72116906,136.85,136.77,1.69157649]
[1767579022056,1.72116906,136.87,136.77,1.69157649]
[1767579023758,1.72116906,136.87,136.78,1.69157649]
[1767579024153,1.72116906,136.87,136.78,8.27407649]
[1767579024353,1.72116906,136.87,136.79,1.69157649]
[1767579024555,108.18966564,136.93,136.8,1.69157649]
[1767579024556,88.02116906,136.9,136.8,1.69157649]
[1767579024858,1.72116906,136.89,136.8,1.69157649]
[1767579025652,1.72116906,136.89,136.81,1.69157649]
[1767579026252,86.3,136.9,136.82,1.69157649]
[1767579029051,88.02116906,136.9,136.82,1.69157649]
[1767579029856,1.72116906,136.89,136.8,1.69157649]
[1767579030151,1.72116906,136.89,136.79,6.5822]
[1767579030357,1.72116906,136.87,136.79,1.69157649]
[1767579031963,1.60975315,136.86,136.79,1.69157649]
[1767579032268,1.60975315,136.86,136.77,8.17722324]
[1767579036855,1.56950207,136.85,136.77,1.59412324]
[1767579037065,1.56950207,136.85,136.75,8.21526658]
[1767579038266,1.56950207,136.85,136.76,1.63126658]
[1767579038470,1.56950207,136.85,136.77,1.63126658]
[1767579039357,1.56950207,136.84,136.75,1.63126658]
[1767579040771,1.56950207,136.84,136.75,8.21526658]
[1767579040772,8.14970207,136.84,136.75,8.21526658]
[1767579041373,8.14970207,136.84,136.76,1.63126658]
[1767579044475,1.47854131,136.83,136.76,1.63126658]
[1767579045878,3.04804338,136.83,136.76,1.63126658]
[1767579046682,1.56950207,136.82,136.73,8.21616658]
[1767579046983,1.56950207,136.82,136.73,9.69470789]
[1767579047183,1.56950207,136.82,136.74,1.63126658]
[1767579048486,1.56950207,136.84,136.76,1.63126658]
[1767579049389,1.56950207,136.84,136.78,1.63126658]
[1767579049592,1.56950207,136.84,136.75,3.10980789]
[1767579050293,3.04804338,136.83,136.75,3.10980789]
[1767579050489,1.56950207,136.82,136.75,1.63126658]
[1767579051395,1.56950207,136.82,136.71,86.34]
[1767579051396,1.56950207,136.8,136.72,1.63126658]
[1767579051895,3.04804338,136.79,136.72,1.63126658]
[1767579057393,3.04804338,136.79,136.72,8.21686658]
[1767579057996,1.56950207,136.79,136.72,8.21686658]
[1767579058700,1.56950207,136.81,136.74,1.63126658]
[1767579059298,1.56950207,136.81,136.75,1.63126658]
[1767579059698,1.56950207,136.81,136.75,8.21536658]
[1767579060001,3.04804338,136.83,136.75,8.21536658]
[1767579060595,1.39553989,136.82,136.75,8.21536658]
[1767579062303,2.8740812,136.79,136.71,1.41767148]
[1767579062906,1.39553989,136.78,136.71,1.41767148]
[1767579063106,2.8740812,136.77,136.69,6.5869]
[1767579063308,102.3658,136.83,136.7,102.4597]
[1767579063309,1.39553989,136.8,136.7,102.4597]
[1767579063607,1.39553989,136.79,136.71,1.41767148]
[1767579064199,1.39553989,136.76,136.68,248.11247899]
[1767579064403,2.8740812,136.76,136.68,248.11247899]
[1767579064601,2.8740812,136.76,136.69,1.41767148]
[1767579065008,1.39553989,136.76,136.69,8.00467148]
[1767579065211,1.39553989,136.76,136.7,1.41767148]
[1767579066607,1.39553989,136.76,136.68,248.17334882]
[1767579066805,1.39553989,136.76,136.68,249.5910203]
[1767579068008,1.39553989,136.76,136.69,1.41767148]
[1767579071009,1.39553989,136.79,136.71,1.41767148]
[1767579072713,1.39553989,136.79,136.71,8.00367148]
[1767579073214,1.39553989,136.77,136.69,1.47854131]
[1767579073416,1.39553989,136.77,136.7,1.41767148]
[1767579074614,1.39553989,136.77,136.7,8.00417148]
[1767579076205,1.39553989,136.77,136.68,253.28220751]
[1767579076411,2.8740812,136.77,136.69,1.41767148]
[1767579076611,1.39553989,136.76,136.68,341.16074882]
[1767579076812,1.39553989,136.76,136.68,342.5784203]
[1767579077613,1.39553989,136.76,136.68,335.9910203]
[1767579078213,7.97943989,136.76,136.68,335.9910203]
[1767579080021,6.5831,136.78,136.69,1.41767148]
[1767579080218,7.97863989,136.78,136.7,1.41767148]
[1767579081613,7.97863989,136.78,136.7,8.00417148]
[1767579082020,92.9819,136.8,136.71,1.41767148]
[1767579082214,1.39553989,136.8,136.73,2.89621279]
[1767579083013,1.39553989,136.8,136.73,9.48121279]
[1767579083220,1.39553989,136.8,136.73,8.00267148]
[1767579083515,1.39553989,136.8,136.73,9.48121279]
[1767579086226,1.39553989,136.8,136.74,1.41767148]
[1767579089522,1.39553989,136.82,136.75,2.89621279]
[1767579089723,1.39553989,136.82,136.73,2.89621279]
[1767579090020,7.97673989,136.82,136.75,2.89621279]
[1767579090223,1.39553989,136.82,136.76,1.41767148]
[1767579091829,86.38,136.85,136.78,1.28318122]
[1767579092020,1.32976339,136.86,136.79,1.47854131]
[1767579093930,1.32976339,136.86,136.78,1.28318122]
[1767579094924,1.32976339,136.85,136.78,1.28318122]
[1767579095121,1.32976339,136.84,136.76,2.76172253]
[1767579095321,1.32976339,136.84,136.76,1.28318122]
[1767579096230,1.20404093,136.82,136.74,1.28820112]
[1767579096630,1.20404093,136.82,136.74,7.87280112]
[1767579097133,1.20404093,136.82,136.74,1.28820112]
[1767579097337,2.68258224,136.81,136.72,94.25360112]
[1767579098132,1.20404093,136.8,136.72,94.25360112]
[1767579098426,7.78614093,136.8,136.72,87.66820112]
[1767579098820,7.78614093,136.8,136.72,94.25380112]
[1767579099029,1.20404093,136.78,136.69,14.74759261]
[1767579099230,1.20404093,136.78,136.7,1.28820112]
[1767579099531,2.68258224,136.78,136.7,1.28820112]
[1767579100032,9.26568224,136.78,136.7,1.28820112]
[1767579101428,1.20404093,136.76,136.68,8.06594131]
[1767579101631,2.68258224,136.76,136.67,1.28820112]
[1767579102624,1.20404093,136.75,136.67,1.28820112]
[1767579106829,1.20404093,136.75,136.68,1.28820112]
[1767579107321,1.20404093,136.78,136.68,1.28820112]
[1767579107632,1.20404093,136.8,136.71,1.28820112]
[1767579108522,1.20404093,136.79,136.71,1.28820112]
[1767579110431,1.20404093,136.78,136.71,1.28820112]
[1767579110938,1.20404093,136.78,136.7,6.5864]
[1767579111530,1.20404093,136.78,136.7,7.87460112]
[1767579112437,1.20404093,136.77,136.68,6.5873]
[1767579112836,1.20404093,136.77,136.68,7.87550112]
[1767579113445,102.3812,136.81,136.68,7.87550112]
[1767579113446,1.20404093,136.83,136.74,7.87270112]
[1767579113635,1.20404093,136.83,136.75,1.28820112]
[1767579114337,1.20404093,136.83,136.76,6.5835]
[1767579114532,1.20404093,136.83,136.76,7.87170112]
[1767579115140,94.18324093,136.86,136.77,7.87130112]
[1767579115636,1.20404093,136.85,136.77,7.87130112]
[1767579117238,1.20404093,136.84,136.75,7.87220112]
[1767579118640,1.20404093,136.83,136.75,7.87220112]
[1767579120043,1.20404093,136.83,136.76,1.28820112]
[1767579121143,1.17183811,136.81,136.7,1.16403488]
[1767579121642,1.17183811,136.81,136.72,1.16403488]
[1767579122638,1.17183811,136.81,136.74,1.16403488]
[1767579123037,0.04960312,136.78,136.74,1.16403488]
[1767579123738,0.04960312,136.78,136.71,7.75023488]
[1767579124341,1.22144123,136.78,136.71,1.16403488]
[1767579130851,0.04960312,136.78,136.71,7.75003488]
[1767579131050,0.04960312,136.78,136.72,1.16403488]
[1767579133147,1.22144123,136.78,136.7,6.5865]
[1767579133443,1.22144123,136.78,136.7,7.75053488]
[1767579133646,1.22144123,136.78,136.71,1.16403488]
[1767579135754,0.04960312,136.78,136.72,1.16403488]
[1767579136548,0.04960312,136.78,136.72,7.74943488]
[1767579136753,0.04960312,136.78,136.73,1.16403488]
[1767579141955,92.9612,136.82,136.73,1.16403488]
[1767579141956,92.9612,136.82,136.74,1.16403488]
[1767579142259,1.17183811,136.83,136.74,1.21140696]
[1767579142660,1.17183811,136.83,136.74,1.16403488]
[1767579143360,1.17183811,136.83,136.77,0.05569128]
[1767579145662,1.17183811,136.85,136.77,1.21972616]
[1767579146060,1.17183811,136.85,136.77,1.16403488]
[1767579146452,1.17183811,136.85,136.8,0.05315276]
[1767579148969,6.5792,136.86,136.8,0.05315276]
[1767579149968,7.75103811,136.86,136.8,0.05315276]
[1767579150158,7.75013811,136.88,136.8,1.21718764]
[1767579150557,86.38,136.89,136.8,1.21718764]
[1767579150759,1.0973211,136.89,136.81,1.06367815]
[1767579151269,1.0973211,136.87,136.78,1.06367815]
[1767579152667,1.0973211,136.87,136.79,1.06367815]
[1767579154173,1.0973211,136.86,136.79,1.06367815]
[1767579156973,1.0937969,136.85,136.77,1.02259705]
[1767579157573,1.0937969,136.84,136.77,1.02259705]
[1767579158273,1.0937969,136.87,136.78,1.02259705]
[1767579159575,7.6725969,136.87,136.79,1.02259705]
[1767579160277,1.0937969,136.87,136.8,1.02259705]
[1767579160473,7.6715969,136.89,136.8,1.02259705]
[1767579161278,7.6715969,136.89,136.81,1.02259705]
[1767579162366,1.0937969,136.89,136.82,1.02259705]
[1767579166580,2.57097016,136.89,136.82,1.02259705]
[1767579167885,1.0937969,136.89,136.82,1.02259705]
[1767579168686,1.0937969,136.89,136.83,1.02259705]
[1767579168883,1.0937969,136.89,136.79,1.02259705]
[1767579169191,1.47717326,136.89,136.82,1.02259705]
[1767579169488,1.0937969,136.9,136.82,1.02259705]
[1767579172282,1.0937969,136.9,136.82,7.60329705]
[1767579175892,1.0937969,136.9,136.82,9.08047031]
[1767579176489,1.0937969,136.89,136.82,9.08047031]
[1767579177191,1.47717326,136.91,136.83,1.02259705]
[1767579177496,94.0101969,136.92,136.84,2.49977031]
[1767579177693,94.0101969,136.92,136.85,1.02259705]
[1767579180597,1.06576506,136.9,136.83,1.05591845]
[1767579181090,2.54293832,136.9,136.83,1.05591845]
[1767579181698,9.12013832,136.9,136.83,1.05591845]
[1767579181993,87.40576506,136.92,136.83,1.05591845]
[1767579182396,87.40576506,136.92,136.84,2.53309171]
[1767579183095,87.40576506,136.92,136.84,1.05591845]
[1767579183296,87.40576506,136.92,136.84,2.53309171]
[1767579183597,87.40576506,136.92,136.84,9.11289171]
[1767579185089,87.40576506,136.92,136.84,7.63571845]
[1767579186498,12.57353736,136.93,136.86,1.05591845]
[1767579187591,12.57353736,136.93,136.86,7.63471845]
[1767579187997,13.63930242,136.93,136.86,7.63471845]
[1767579188398,13.63930242,136.93,136.85,1.47717326]
[1767579188399,1.06576506,136.92,136.84,7.63551845]
[1767579188796,1.06576506,136.92,136.84,1.05591845]
[1767579189694,1.06576506,136.92,136.85,7.63521845]
[1767579191099,1.06576506,136.9,136.83,1.05591845]
[1767579191487,1.06576506,136.9,136.81,88.85309171]
[1767579191686,1.06576506,136.88,136.81,87.37591845]
[1767579193495,1.06576506,136.88,136.81,1.05591845]
[1767579199510,1.06576506,136.86,136.79,1.05591845]
[1767579201001,1.06576506,136.86,136.8,1.05591845]
[1767579201508,2.54293832,136.89,136.81,1.05591845]
[1767579202706,2.54293832,136.89,136.81,7.63701845]
[1767579203911,2.54293832,136.89,136.82,1.05591845]
[1767579206313,1.06576506,136.89,136.82,1.05591845]
[1767579206513,2.54293832,136.89,136.82,1.05591845]
[1767579207814,1.06576506,136.88,136.82,1.05591845]
[1767579208115,2.54293832,136.87,136.81,6.5811]
[1767579208414,1.06576506,136.86,136.8,14.53120533]
[1767579209014,1.47717326,136.87,136.81,1.05591845]
[1767579209314,2.54293832,136.88,136.81,1.05591845]
[1767579209516,1.06576506,136.88,136.81,1.05591845]
[1767579209716,1.47717326,136.89,136.82,7.63671845]
[1767579211023,2.4117621,136.94,136.85,0.9648882]
[1767579211323,2.4117621,136.94,136.87,0.9648882]
[1767579212519,2.4117621,136.94,136.87,7.5431882]
[1767579214024,2.4117621,136.94,136.87,0.9648882]
[1767579214221,13.5081262,136.93,136.87,0.9648882]
[1767579214425,13.5081262,136.93,136.85,7.5440882]
[1767579214426,0.93458884,136.92,136.85,7.5440882]
[1767579214628,0.93458884,136.91,136.85,0.9648882]
[1767579215813,0.93458884,136.91,136.83,21.02027508]
[1767579216425,1.00286375,136.9,136.83,21.02027508]
[1767579217026,1.00286375,136.9,136.84,0.92734008]
[1767579217423,1.00286375,136.9,136.83,20.05538688]
[1767579217628,1.00286375,136.9,136.83,7.50744008]
[1767579217931,1.00286375,136.94,136.87,0.92734008]
[1767579221930,1.00286375,136.94,136.86,6.5788]
[1767579222132,2.48003701,136.93,136.86,6.5788]
[1767579224331,1.00286375,136.92,136.85,0.92734008]
[1767579225233,1.00286375,136.95,136.87,0.92734008]
[1767579226638,1.00286375,136.94,136.85,0.92734008]
[1767579227036,1.00286375,136.93,136.85,0.92734008]
[1767579227535,1.00286375,136.92,136.85,0.92734008]
[1767579229039,1.00286375,136.91,136.82,92.9006]
[1767579229240,1.00286375,136.91,136.82,93.82794008]
[1767579229742,1.00286375,136.9,136.82,93.82794008]
[1767579230144,1.00286375,136.9,136.83,0.92734008]
[1767579231042,1.00286375,136.9,136.83,7.50764008]
[1767579235750,1.00286375,136.92,136.85,0.92734008]
[1767579236747,86.3,136.93,136.85,0.92734008]
[1767579237051,1.00286375,136.94,136.87,0.92734008]
[1767579241255,0.92337873,136.93,136.85,0.94073047]
[1767579242546,0.92337873,136.93,136.85,7.52003047]
[1767579242748,0.92337873,136.93,136.85,6.5793]
[1767579242947,0.92337873,136.93,136.86,0.94073047]
[1767579244550,7.49917873,136.93,136.86,0.94073047]
[1767579244855,0.92337873,136.92,136.86,0.94073047]
[1767579245255,7.49967873,136.92,136.84,0.94073047]
[1767579245456,0.92337873,136.91,136.84,0.94073047]
[1767579245656,7.50027873,136.91,136.84,0.94073047]
[1767579246156,0.92337873,136.9,136.84,0.94073047]
[1767579247559,7.50057873,136.9,136.83,0.94073047]
[1767579250554,0.92337873,136.9,136.83,0.94073047]
[1767579251158,102.3507,136.85,136.78,13.52513359]
[1767579251359,102.3507,136.85,136.75,0.94073047]
[1767579251360,102.348,136.85,136.75,0.94073047]
[1767579251563,190.94926842,136.86,136.75,0.94073047]
[1767579252565,6.5803,136.84,136.75,0.94073047]
[1767579257363,6.5807,136.83,136.75,0.94073047]
[1767579257867,6.5807,136.83,136.69,110.55616842]
[1767579257868,6.5814,136.81,136.72,0.94073047]
[1767579258565,8.88836842,136.8,136.72,0.94073047]
[1767579259468,124.2887,136.84,136.72,0.94073047]
[1767579259469,102.3346,136.87,136.74,3.24689889]
[1767579259671,88.64616842,136.88,136.75,0.94073047]
[1767579259868,86.34,136.88,136.77,7.52373047]
[1767579260170,86.34,136.88,136.78,0.94073047]
[1767579260365,86.34,136.88,136.78,3.24689889]
[1767579260567,86.34,136.88,136.79,0.94073047]
[1767579260766,92.9184,136.88,136.79,0.94073047]
[1767579263870,190.97456842,136.88,136.76,0.94073047]
[1767579265674,6.5792,136.86,136.76,0.94073047]
[1767579268472,6.5797,136.85,136.76,0.94073047]
[1767579272280,6.5797,136.85,136.75,6.5841]
[1767579272473,6.5802,136.84,136.75,6.5841]
[1767579272675,86.36,136.83,136.74,0.93741033]
[1767579274582,6.5812,136.82,136.74,0.93741033]
[1767579279087,0.04909891,136.79,136.74,0.93741033]
[1767579280185,6.5812,136.82,136.74,0.93741033]
[1767579280482,92.9412,136.82,136.76,1.00842515]
[1767579280685,86.36,136.82,136.76,1.00842515]
[1767579281481,86.36,136.82,136.75,0.0484075]
[1767579281682,88.66616842,136.82,136.75,0.0484075]
[1767579282685,2.30616842,136.8,136.75,0.0484075]
[1767579282992,2.30616842,136.78,136.68,1.00842515]
[1767579283193,86.36,136.77,136.68,1.00842515]
[1767579283884,86.36,136.76,136.68,1.00842515]
[1767579284088,86.36,136.77,136.68,1.00842515]
[1767579284592,0.04970865,136.73,136.68,1.00842515]
[1767579284888,0.04970865,136.73,136.69,7.59532515]
[1767579285187,86.36,136.77,136.69,7.64965268]
[1767579286493,92.9438,136.77,136.69,1.06275268]
[1767579288590,1.48023156,136.76,136.69,1.06275268]
[1767579289690,8.06443156,136.76,136.69,0.05432753]
[1767579293688,8.06333156,136.78,136.69,1.06275268]
[1767579293891,86.4,136.77,136.69,1.06275268]
[1767579294092,86.4,136.77,136.69,1.00842515]
[1767579294690,86.4,136.77,136.69,7.59542515]
[1767579295293,86.4,136.77,136.72,0.05545041]
[1767579297896,8.06243156,136.8,136.72,0.05545041]
[1767579298195,86.4,136.81,136.73,2.48865671]
[1767579299193,86.4,136.81,136.76,0.05275138]
[1767579303399,8.06043156,136.84,136.76,0.05275138]
[1767579303704,86.4,136.83,136.76,1.11316871]
[1767579304105,86.4,136.83,136.76,1.06041733]
[1767579304495,86.4,136.83,136.78,0.04918676]
[1767579306399,1.48023156,136.82,136.73,7.64541733]
[1767579306700,1.48023156,136.82,136.73,1.06041733]
[1767579306904,1.48023156,136.8,136.71,1.06041733]
[1767579307103,86.38,136.79,136.71,1.06041733]
[1767579307703,86.38,136.79,136.74,0.05449909]
[1767579309706,92.9625,136.79,136.74,0.05449909]
[1767579310503,1.48023156,136.78,136.74,0.05449909]
[1767579311698,102.3513,136.85,136.75,1.06041733]
[1767579312011,87.86023156,136.84,136.75,1.06041733]
[1767579312205,1.48023156,136.82,136.75,1.06041733]